bitfinex-derivatives/quotes_ETHF0:USTF0_20240901
["timestamp","ask_amount","ask_price","bid_price","bid_amount"]
[1725234741261,0.00618072,2429.8,2429.5,2.0709]
[1725234742064,0.00618072,2429.8,2429.4,3.8869]
[1725234742661,0.00618072,2429.8,2429.3,3.21398072]
[1725234742861,0.20578,2429.6,2429.3,0.00618072]
[1725234743061,0.9665,2429.5,2429.3,0.00618072]
[1725234743257,1.0887,2429.4,2429.3,0.00618072]
[1725234743758,0.9665,2429.5,2429.3,0.00618072]
[1725234743967,1.0887,2429.7,2429.3,4.32798072]
[1725234744164,1.0887,2429.7,2429.4,3.2078]
[1725234744575,1.0887,2429.7,2429.5,0.20579]
[1725234744770,0.00618072,2429.8,2429.5,0.20578]
[1725234744970,0.00618072,2429.8,2429.6,1.0518]
[1725234747878,0.00618072,2429.8,2429.6,1.25758]
[1725234748170,0.00618072,2429.8,2429.7,9.63757]
[1725234748171,0.00210729,2429.8,2429.7,9.63757]
[1725234748764,0.00210729,2429.8,2429.7,15.63757]
[1725234749570,0.00210729,2429.8,2429.7,9.63757]
[1725234749761,0.00210729,2429.8,2429.7,15.63757]
[1725234751172,0.00210729,2429.8,2429.7,9.63757]
[1725234753176,0.00210729,2429.8,2429.7,9.4318]
[1725234753582,0.00210729,2429.8,2429.7,8.3442]
[1725234753777,0.00210729,2429.8,2429.6,3.8918]
[1725234753977,0.00210729,2429.8,2429.6,1.0518]
[1725234755384,0.00210729,2429.8,2429.6,3.8918]
[1725234756985,0.00210729,2429.8,2429.7,4.32177]
[1725234757286,0.00210729,2429.8,2429.7,7.52957]
[1725234759086,0.00210729,2429.8,2429.6,3.8918]
[1725234759279,0.00210729,2429.8,2429.6,4.09758]
[1725234760183,0.00210729,2429.8,2429.6,3.04578]
[1725234760385,0.00210729,2429.8,2429.6,2.84]
[1725234760889,0.00210729,2429.8,2429.6,3.04578]
[1725234761086,0.00210729,2429.8,2429.7,0.9875]
[1725234762580,0.00210729,2429.8,2429.6,2.84]
[1725234762982,0.00210729,2429.8,2429.4,7.9918]
[1725234763576,0.00210729,2429.8,2429.4,8.1976]
[1725234763789,0.00210729,2429.8,2429.6,2.84]
[1725234764792,0.00210729,2429.8,2429.7,1.18467]
[1725234765677,0.00210729,2429.8,2429.7,5.30067]
[1725234766489,0.9859,2430.7,2430.2,0.20573]
[1725234766685,0.9859,2430.7,2430.5,2.84]
[1725234766989,0.9819,2431.1,2430.5,3.0457]
[1725234767284,0.9859,2431.0,2430.8,2.84]
[1725234767490,0.99208072,2431.0,2430.8,2.84]
[1725234767885,4.1136,2430.9,2430.6,0.00618072]
[1725234768188,0.99208072,2431.0,2430.6,0.00618072]
[1725234769182,2.00888072,2431.0,2430.6,0.00618072]
[1725234774796,2.00888072,2431.0,2430.6,2.84618072]
[1725234777882,2.00888072,2431.0,2430.6,0.00618072]
[1725234778492,42.80888072,2431.0,2430.6,0.00618072]
[1725234778892,8.44246984,2430.9,2430.6,0.00618072]
[1725234779087,4.1136,2430.8,2430.6,0.00618072]
[1725234779289,7.3214,2430.8,2430.6,0.00618072]
[1725234779485,4.1144,2430.7,2430.6,0.00618072]
[1725234779694,4.1144,2430.8,2430.6,0.00618072]
[1725234780891,42.80888072,2431.0,2430.6,0.00618072]
[1725234781091,43.01455072,2431.0,2430.6,0.00618072]
[1725234781294,4.15678098,2431.8,2430.9,2.84]
[1725234781599,4.15678098,2431.8,2431.4,2.84]
[1725234781600,4.59326026,2431.5,2431.4,2.84]
[1725234782000,4.1128,2431.5,2431.4,2.84]
[1725234782302,4.1128,2431.5,2431.1,6.0478]
[1725234782493,4.25448072,2431.7,2431.1,6.0478]
[1725234782891,4.64170732,2431.6,2431.1,6.0478]
[1725234783410,4.64170732,2431.6,2431.1,2.84]
[1725234784801,4.64170732,2431.6,2430.8,3.41348]
[1725234784802,8.75450732,2431.6,2430.9,2.84]
[1725234785005,8.75450732,2431.6,2430.6,0.00618072]
[1725234785006,3.41347,2431.0,2430.6,0.00618072]
[1725234785297,2.8791,2430.9,2430.6,0.00618072]
[1725234785500,7.60471469,2430.9,2430.6,0.00618072]
[1725234785703,11.71831469,2430.9,2430.6,0.00618072]
[1725234785890,3.2078,2430.7,2430.6,0.00618072]
[1725234786300,17.84049752,2430.7,2430.6,0.00618072]
[1725234786597,18.04618752,2430.7,2430.1,2.84]
[1725234786810,7.72609752,2430.7,2430.1,2.84]
[1725234787008,7.93178752,2430.7,2430.1,2.84]
[1725234787305,40.8,2430.6,2430.1,2.84]
[1725234787504,40.8,2430.6,2430.1,2.84618072]
[1725234787703,5.49434787,2430.5,2430.1,2.84618072]
[1725234788606,0.9742,2430.5,2430.3,2.84]
[1725234789010,5.0886,2430.5,2430.3,2.84]
[1725234789506,8.74896862,2430.4,2430.1,2.84618072]
[1725234789712,4.63456862,2430.4,2430.1,2.84618072]
[1725234789901,0.9742,2430.5,2430.1,2.84618072]
[1725234791610,4.60909405,2430.4,2430.1,2.84618072]
[1725234791808,1.0019,2430.3,2430.1,2.84618072]
[1725234792410,5.1171,2430.3,2430.1,2.84618072]
[1725234792706,4.1152,2430.2,2430.1,0.00618072]
[1725234796313,1.0019,2430.3,2430.1,0.00618072]
[1725234797105,0.00618072,2430.4,2430.1,0.00618072]
[1725234797503,0.00618072,2430.4,2430.1,1.01848072]
[1725234798316,0.00618072,2430.4,2430.2,0.9373]
[1725234799310,0.00618072,2430.4,2430.3,2.84]
[1725234799511,0.00618072,2430.4,2430.3,10.36792]
[1725234799712,1.8948,2431.1,2430.3,10.36792]
[1725234799713,0.961,2431.1,2430.3,16.1622]
[1725234799921,0.961,2431.1,2430.8,2.84]
[1725234800219,4.1688,2431.4,2430.9,1.0254]
[1725234800405,4.1688,2431.4,2430.9,2.0225]
[1725234800910,4.17498072,2431.4,2430.9,2.0225]
[1725234801815,4.17498072,2431.4,2430.9,1.0254]
[1725234802515,3.21398072,2431.4,2431.1,2.84]
[1725234803628,0.00618072,2431.4,2431.1,6.9528]
[1725234803814,0.00618072,2431.4,2431.2,0.9301]
[1725234804206,0.00618072,2431.4,2431.2,5.0429]
[1725234805719,0.00618072,2431.4,2431.2,0.9301]
[1725234806124,0.00618072,2431.4,2431.1,2.84]
[1725234808218,0.00618072,2431.4,2431.1,3.04565]
[1725234809122,0.00618072,2431.4,2431.1,2.84]
[1725234809413,0.00618072,2431.4,2431.0,1.9587]
[1725234812413,7.60256016,2431.3,2430.9,3.8654]
[1725234812717,1.9582,2431.2,2430.9,3.8654]
[1725234813015,42.7582,2431.2,2430.9,3.8654]
[1725234813324,41.8229,2431.2,2430.9,3.8654]
[1725234816623,1.0229,2431.2,2430.9,2.84]
[1725234817013,4.72774309,2431.1,2430.6,3.7978]
[1725234817720,4.93340309,2431.1,2430.6,3.7978]
[1725234817924,4.72774309,2431.1,2430.6,3.7978]
[1725234822126,3.2078,2431.0,2430.6,0.9578]
[1725234822319,44.0078,2431.0,2430.6,0.9578]
[1725234822617,44.0078,2431.0,2430.7,3.04568]
[1725234822820,1.9978,2431.2,2430.7,3.04568]
[1725234823015,5.2056,2431.2,2430.7,2.84]
[1725234823214,4.71959254,2431.1,2430.7,2.84]
[1725234827021,4.71959254,2431.1,2430.7,3.04569]
[1725234827213,5.2056,2431.2,2430.8,0.9663]
[1725234827523,5.2056,2431.2,2430.7,2.84]
[1725234827725,5.2056,2431.2,2430.7,3.04569]
[1725234827924,5.2056,2431.2,2430.7,2.84]
[1725234831219,1.9978,2431.2,2431.0,2.84]
[1725234831531,4.15678098,2431.3,2431.0,6.25346]
[1725234831733,4.15678098,2431.3,2431.2,2.84]
[1725234832118,4.15678098,2431.3,2431.1,2.9127]
[1725234833622,0.00618072,2431.4,2431.1,2.9127]
[1725234834232,0.00618072,2431.4,2431.2,2.84]
[1725234837026,0.00618072,2431.4,2431.1,1.0062]
[1725234837225,0.00618072,2431.4,2431.0,6.0478]
[1725234837424,1.00458072,2431.4,2431.0,6.0478]
[1725234838431,3.2078,2431.3,2430.8,3.8441]
[1725234838626,3.41344,2431.3,2430.8,3.8441]
[1725234838820,3.2078,2431.3,2430.8,3.8441]
[1725234839022,44.0078,2431.3,2430.8,3.8441]
[1725234840420,4.56336161,2431.2,2430.8,3.8441]
[1725234840724,0.9711,2431.1,2430.8,3.8441]
[1725234840922,1.9275,2431.1,2430.8,3.8441]
[1725234842021,1.9275,2431.1,2430.7,3.2078]
[1725234842022,4.60614665,2431.0,2430.7,3.2078]
[1725234843125,3.2078,2430.9,2430.4,3.8172]
[1725234843326,3.2078,2430.9,2430.3,0.984]
[1725234843327,0.20568,2430.8,2430.3,0.984]
[1725234843535,4.74380849,2430.8,2430.2,2.84]
[1725234843732,1.0215,2430.7,2430.2,2.84]
[1725234843924,0.9934,2430.6,2430.2,2.84]
[1725234844227,5.5692023,2430.6,2430.2,2.84]
[1725234845017,8.7770023,2430.6,2430.2,2.84]
[1725234845631,5.5692023,2430.6,2430.2,2.84]
[1725234846122,8.7770023,2430.6,2430.2,2.84]
[1725234848229,5.5692023,2430.6,2430.2,2.84]
[1725234849233,3.2078,2430.5,2430.2,2.84]
[1725234850321,0.9934,2430.6,2430.2,2.84]
[1725234850731,4.57574176,2430.5,2430.2,2.84]
[1725234851540,1.0215,2430.7,2430.4,2.84]
[1725234854843,1.0215,2430.7,2430.5,1.0053]
[1725234855141,4.15678098,2431.0,2430.5,1.0053]
[1725234855342,1.9484,2430.9,2430.5,1.0053]
[1725234857044,4.15678098,2431.0,2430.6,2.84]
[1725234857337,4.15678098,2431.0,2430.6,3.04569]
[1725234857544,4.15678098,2431.0,2430.7,0.9311]
[1725234858043,4.15678098,2431.0,2430.7,1.13679]
[1725234858740,4.15678098,2431.0,2430.7,0.9311]
[1725234860242,0.9615,2431.2,2430.7,0.9311]
[1725234861437,0.9615,2431.2,2430.5,1.0053]
[1725234861438,7.82075088,2431.1,2430.5,1.0053]
[1725234861645,0.9537,2431.0,2430.5,1.0053]
[1725234862233,1.15936,2431.0,2430.5,1.0053]
[1725234862749,0.9537,2431.0,2430.5,1.0053]
[1725234863046,1.15936,2431.0,2430.5,1.0053]
[1725234863246,3.2078,2430.8,2430.5,1.0053]
[1725234863649,1.91,2430.7,2430.5,1.0053]
[1725234863848,1.91,2430.7,2430.2,7.03]
[1725234864049,6.57117871,2430.7,2430.2,7.9693]
[1725234865145,3.2078,2430.9,2430.6,2.84]
[1725234865345,3.2078,2430.9,2430.7,0.9393]
[1725234866452,0.975,2430.8,2430.7,0.9393]
[1725234867553,0.975,2430.8,2430.4,2.84]
[1725234867554,9.69000854,2430.8,2430.4,2.84]
[1725234867749,5.57640854,2430.8,2430.4,2.84]
[1725234868753,5.57640854,2430.8,2430.3,0.9764]
[1725234869050,3.2078,2430.4,2430.3,0.9764]
[1725234869554,1.20669,2430.7,2430.3,0.9764]
[1725234869747,1.20669,2430.7,2430.2,2.84]
[1725234870056,3.2078,2430.5,2430.2,3.8221]
[1725234870450,1.0148,2430.4,2430.2,3.8221]
[1725234871057,1.0148,2430.4,2430.1,0.93398072]
[1725234871356,1.0148,2430.4,2430.1,1.91608072]
[1725234872657,1.0148,2430.4,2430.2,2.84]
[1725234872964,4.1718,2430.6,2430.2,2.84]
[1725234873252,4.46908862,2430.5,2430.2,2.84]
[1725234882453,4.1718,2430.6,2430.2,2.84]
[1725234884060,4.1718,2430.6,2430.3,1.19]
[1725234884564,4.1718,2430.6,2430.1,0.00618072]
[1725234884755,3.41352,2430.3,2430.1,0.00618072]
[1725234884954,3.31533,2430.2,2430.1,0.00618072]
[1725234885156,9.03105888,2430.2,2430.1,0.00618072]
[1725234885462,53.94625888,2430.2,2430.1,0.00618072]
[1725234885763,53.84336637,2430.2,2430.1,0.00618072]
[1725234885954,58.65336637,2430.2,2430.1,0.00618072]
[1725234886148,58.65336637,2430.2,2429.6,0.9352]
[1725234886149,3.05574,2430.1,2429.6,0.9352]
[1725234886354,3.2078,2430.0,2429.6,0.9352]
[1725234886550,7.95960799,2430.0,2429.6,0.9352]
[1725234887156,7.96578871,2430.0,2429.6,0.94138072]
[1725234888665,2.85,2429.9,2429.6,0.00618072]
[1725234888854,3.41357,2429.7,2429.6,0.00618072]
[1725234889056,3.41357,2429.7,2429.1,0.9601]
[1725234889057,0.20579,2429.5,2429.1,0.9601]
[1725234889266,0.20579,2429.5,2428.7,6.0578]
[1725234889467,5.46592103,2429.4,2428.8,2.9431]
[1725234890060,8.67372103,2429.4,2428.9,0.00618072]
[1725234890260,1.0031,2429.4,2428.9,0.00618072]
[1725234890458,1.0031,2429.4,2428.9,2.85618072]
[1725234891456,1.0031,2429.4,2428.9,0.00618072]
[1725234891663,1.0031,2429.4,2428.9,2.85618072]
[1725234892366,1.0031,2429.4,2428.9,0.00618072]
[1725234892664,0.20581,2429.3,2428.9,0.00618072]
[1725234893970,4.69763015,2429.2,2428.9,0.00618072]
[1725234894373,0.9162,2429.1,2428.9,0.00618072]
[1725234894871,0.9419,2429.0,2428.9,0.00618072]
[1725234895961,10.42038098,2429.4,2428.9,0.00618072]
[1725234896157,1.8581,2429.3,2428.9,0.95668072]
[1725234896374,1.8581,2429.3,2428.9,0.00618072]
[1725234896375,6.53001753,2429.3,2428.9,0.00618072]
[1725234898064,6.73582753,2429.3,2428.9,0.00618072]
[1725234900160,6.53001753,2429.3,2428.9,0.00618072]
[1725234900467,3.05583,2429.0,2428.9,0.00618072]
[1725234900674,0.20585,2428.8,2428.2,0.9601]
[1725234900869,3.2078,2428.5,2428.2,0.9601]
[1725234902072,0.9564,2428.4,2428.1,0.00618072]
[1725234903078,1.16229,2428.4,2428.1,0.00618072]
[1725234903370,3.4137,2428.2,2428.1,0.00618072]
[1725234903574,3.2078,2428.2,2428.1,0.00618072]
[1725234903772,8.453,2428.2,2428.1,0.00618072]
[1725234904376,18.73884698,2428.2,2428.1,0.00618072]
[1725234905780,4.1287,2428.2,2428.1,0.00618072]
[1725234906278,8.2471,2428.2,2428.1,0.00618072]
[1725234907467,0.9209,2428.2,2428.1,0.00618072]
[1725234907672,8.2471,2428.2,2428.1,0.00618072]
[1725234908677,21.98418149,2428.2,2428.1,0.00618072]
[1725234908879,0.20593,2427.9,2427.3,1.0024]
[1725234909077,4.1333,2427.8,2427.3,1.0024]
[1725234909274,0.9718,2427.7,2427.3,1.0024]
[1725234909471,3.2078,2427.4,2427.0,1.8834]
[1725234909679,6.0578,2427.4,2427.0,1.8834]
[1725234909877,6.0578,2427.4,2427.0,1.88958072]
[1725234910078,3.2078,2427.4,2427.0,1.88958072]
[1725234910377,2.85,2427.6,2427.0,1.88958072]
[1725234910774,4.69405707,2427.5,2427.0,1.88958072]
[1725234910975,2.85,2427.6,2427.0,1.88958072]
[1725234911479,8.33638098,2427.7,2427.0,1.88958072]
[1725234911671,5.12858098,2427.7,2427.0,4.73958072]
[1725234911873,5.12858098,2427.7,2427.1,0.20599]
[1725234912070,5.12858098,2427.7,2427.2,0.9741]
[1725234912770,5.12858098,2427.7,2427.2,1.18008]
[1725234913279,8.33638098,2427.7,2427.2,0.9741]
[1725234913784,4.1796,2427.7,2427.2,0.9741]
[1725234914283,4.1796,2427.7,2427.2,1.18008]
[1725234915086,0.967,2427.9,2427.2,11.1511]
[1725234915382,0.967,2427.9,2427.3,0.20597]
[1725234915582,0.967,2427.9,2427.4,0.20597]
[1725234915787,0.967,2427.9,2427.5,0.9312]
[1725234916085,0.967,2427.9,2427.5,1.9146]
[1725234916289,1.17293,2427.9,2427.5,0.9312]
[1725234916587,4.71816332,2427.8,2427.5,0.9312]
[1725234916781,4.51223332,2427.8,2427.2,4.1819]
[1725234917081,4.51223332,2427.8,2427.3,0.9312]
[1725234917285,3.2078,2427.7,2427.3,0.9312]
[1725234917585,1.0074,2427.6,2427.3,0.9312]
[1725234918184,0.9367,2427.5,2427.3,0.9312]
[1725234918487,0.20593,2427.9,2427.3,0.9312]
[1725234918488,6.0578,2428.0,2427.3,0.9312]
[1725234918686,3.2078,2428.0,2427.4,0.20597]
[1725234918980,3.2078,2428.0,2427.5,6.0578]
[1725234919185,5.13508098,2428.2,2427.5,6.0578]
[1725234919385,5.13508098,2428.2,2427.6,0.9747]
[1725234919582,4.29549369,2428.1,2427.6,0.9747]
[1725234919783,5.13508098,2428.2,2427.7,0.9672]
[1725234919980,0.9783,2428.2,2427.8,0.9719]
[1725234920775,4.0342,2428.2,2427.8,0.9719]
[1725234920978,8.08995811,2428.1,2427.2,6.0578]
[1725234921196,0.9208,2428.0,2427.4,0.20597]
[1725234922288,0.9208,2428.0,2427.5,0.20596]
[1725234922584,0.9208,2428.0,2427.4,0.20596]
[1725234923094,1.8939,2428.0,2427.4,0.20596]
[1725234923387,0.9208,2428.0,2427.5,0.20596]
[1725234923683,3.2078,2428.1,2427.5,0.20595]
[1725234924392,3.2078,2428.1,2427.6,0.20595]
[1725234924579,3.2078,2428.1,2427.7,0.99]
[1725234924782,3.2078,2428.1,2427.8,0.928]
[1725234926084,3.2078,2428.1,2427.4,0.20597]
[1725234926286,3.41371,2428.1,2427.4,2.12397]
[1725234926491,3.2078,2427.8,2427.4,0.928]
[1725234926785,6.2723645,2427.7,2427.4,0.928]
[1725234927085,1.9768,2427.7,2427.4,0.928]
[1725234927585,1.9768,2427.7,2427.4,1.13396]
[1725234927886,0.9934,2427.7,2427.4,1.13396]
[1725234928086,0.9934,2427.7,2427.5,0.9958]
[1725234931398,0.985,2428.0,2427.5,5.32095]
[1725234931596,0.9175,2427.9,2427.6,0.20595]
[1725234932088,0.9175,2427.9,2427.7,0.20594]
[1725234932285,0.9175,2427.9,2427.8,0.9691]
[1725234932790,0.9175,2427.9,2427.8,5.0883]
[1725234933178,0.9175,2427.9,2427.8,0.9691]
[1725234934380,0.9175,2427.9,2427.5,1.20175]
[1725234934584,0.9175,2427.9,2427.6,0.20595]
[1725234935487,0.9175,2427.9,2427.5,1.9514]
[1725234935793,3.2078,2428.1,2427.8,0.20593]
[1725234935985,3.2078,2428.1,2427.9,0.9323]
[1725234936890,3.2078,2428.1,2427.5,0.20595]
[1725234937090,0.9744,2428.0,2427.5,0.20595]
[1725234937593,1.0052,2427.9,2427.5,0.20595]
[1725234938094,1.0052,2427.9,2427.4,4.212]
[1725234938293,3.2078,2428.1,2427.8,0.20593]
[1725234938588,4.213,2428.1,2427.9,1.0042]
[1725234938789,3.2078,2428.1,2428.0,0.20592]
[1725234938999,1.0052,2428.4,2427.9,7.9726]
[1725234939184,1.0052,2428.4,2427.9,3.8542]
[1725234939384,1.0052,2428.4,2428.0,0.20591]
[1725234939682,1.0052,2428.4,2428.2,0.2059]
[1725234939887,0.00618072,2428.6,2428.3,0.20589]
[1725234940186,0.00618072,2428.6,2428.4,1.19178]
[1725234940490,0.00618072,2428.6,2428.3,0.21207072]
[1725234942093,0.00618072,2428.6,2428.3,4.32967072]
[1725234942491,0.00618072,2428.6,2428.3,4.12378072]
[1725234942799,0.00618072,2428.6,2428.4,0.20588]
[1725234942992,0.00618072,2428.6,2428.4,1.11578]
[1725234943195,0.00618072,2428.6,2428.5,0.945]
[1725234943710,0.00618072,2428.6,2428.5,5.0626]
[1725234945298,0.00618072,2428.6,2428.3,3.41987072]
[1725234945494,0.00618072,2428.6,2428.3,3.21398072]
[1725234945691,0.21205072,2428.6,2428.3,3.21398072]
[1725234945895,7.55297584,2428.5,2428.3,3.21398072]
[1725234946298,11.67057584,2428.5,2428.3,3.21398072]
[1725234946806,11.67057584,2428.5,2428.3,0.00618072]
[1725234946807,7.3254,2428.4,2428.3,0.00618072]
[1725234946993,7.3254,2428.4,2427.8,0.9434]
[1725234946994,7.53128,2428.4,2427.8,0.9434]
[1725234947194,7.91545441,2428.4,2427.8,0.9434]
[1725234947398,7.91545441,2428.4,2427.8,1.14933]
[1725234947903,7.91545441,2428.4,2427.9,0.9441]
[1725234948699,7.91545441,2428.4,2427.9,1.15002]
[1725234949001,4.70765441,2428.4,2427.9,1.15002]
[1725234950197,5.7479,2428.5,2428.1,0.2059]
[1725234950198,1.893,2428.5,2428.1,0.2059]
[1725234951999,0.9493,2428.5,2428.2,0.20589]
[1725234952504,0.9493,2428.5,2428.3,0.20589]
[1725234952702,0.9493,2428.5,2428.4,0.9952]
[1725234953201,8.2747,2428.5,2427.9,0.9441]
[1725234953399,4.1571,2428.5,2427.9,0.9441]
[1725234953801,4.36298,2428.5,2427.9,0.9441]
[1725234954106,0.9493,2428.5,2428.1,0.20591]
[1725234954305,0.9493,2428.5,2427.9,0.9441]
[1725234954306,0.9493,2428.5,2428.2,0.20589]
[1725234955400,0.9493,2428.5,2427.9,0.9441]
[1725234955914,0.9493,2428.5,2427.9,1.15002]
[1725234956413,1.15517,2428.5,2427.9,1.15002]
[1725234956706,0.9493,2428.5,2427.9,0.9441]
[1725234956904,1.15518,2428.5,2427.9,1.15002]
[1725234957201,4.5939853,2428.4,2427.9,1.15002]
[1725234957409,4.5939853,2428.4,2428.0,0.20592]
[1725234957703,4.5939853,2428.4,2427.9,1.15002]
[1725234960200,4.7998653,2428.4,2427.9,0.9441]
[1725234960509,4.5939853,2428.4,2428.3,3.2078]
[1725234960714,0.00618072,2428.6,2428.3,9.2078]
[1725234961003,3.2078,2428.9,2428.5,2.85]
[1725234961203,3.2078,2428.9,2428.5,3.05587]
[1725234962002,3.21398072,2428.9,2428.5,3.06205072]
[1725234962605,0.9655,2428.8,2428.5,0.00618072]
[1725234964199,1.9088,2428.7,2428.5,0.00618072]
[1725234964715,6.0264,2428.7,2428.5,0.00618072]
[1725234967204,8.55864983,2428.6,2428.5,0.00618072]
[1725234969220,11.76644983,2428.6,2428.5,0.00618072]
[1725234969918,11.97230983,2428.6,2428.5,0.00618072]
[1725234971108,11.76644983,2428.6,2428.5,0.00618072]
[1725234974213,20.61644983,2428.6,2427.9,3.2078]
[1725234974416,0.20588,2428.5,2427.9,3.2078]
[1725234974813,5.25810118,2428.4,2427.9,3.2078]
[1725234976922,5.25810118,2428.4,2427.8,1.9676]
[1725234977614,5.25810118,2428.4,2427.9,3.2078]
[1725234979412,0.7021,2428.4,2427.9,3.2078]
[1725234980024,0.7021,2428.4,2427.9,3.41164078]
[1725234980219,0.7021,2428.4,2427.8,1.9676]
[1725234980220,0.7021,2428.4,2427.8,2.17353]
[1725234980423,4.36363594,2428.3,2427.8,1.9676]
[1725234980631,0.7572,2428.2,2427.8,1.9676]
[1725234980922,0.7572,2428.2,2427.8,2.17353]
[1725234981242,0.7572,2428.2,2427.9,3.2078]
[1725234981423,4.36363594,2428.3,2427.9,3.2078]
[1725234981621,0.7021,2428.4,2427.8,2.17353]
[1725234981831,0.7021,2428.4,2428.0,0.20591]
[1725234983824,0.7021,2428.4,2428.2,0.2059]
[1725234984127,4.15678098,2428.7,2428.3,1.4301]
[1725234984337,0.696,2428.6,2428.3,2.1209]
[1725234984719,4.15678098,2428.7,2428.4,0.20588]
[1725234984914,0.696,2428.8,2428.4,0.20588]
[1725234985315,0.696,2428.8,2428.5,0.20587]
[1725234986632,0.696,2428.8,2428.4,0.20588]
[1725234987128,0.696,2428.8,2428.5,0.20587]
[1725234988130,0.00618072,2428.9,2428.6,0.20586]
[1725234988317,0.00618072,2428.9,2428.5,0.20587]
[1725234988519,0.00618072,2428.9,2428.3,2.1209]
[1725234988520,0.00618072,2428.9,2428.6,0.20586]
[1725234988934,0.00618072,2428.9,2428.3,2.1209]
[1725234988935,0.00618072,2428.9,2428.5,0.20587]
[1725234996932,0.00618072,2428.9,2428.4,0.90738]
[1725234997135,0.20585,2428.8,2428.4,0.7015]
[1725234997331,0.7204,2428.7,2428.4,0.7015]
[1725234997541,8.81173764,2428.7,2428.3,1.4301]
[1725234997831,0.7442,2428.6,2428.3,1.4301]
[1725234998031,0.7442,2428.6,2427.9,3.2078]
[1725234998032,2.85,2428.4,2427.9,3.2078]
[1725234998238,0.20589,2428.3,2427.9,0.6777]
[1725234998433,4.74221025,2428.3,2427.9,0.6777]
[1725234998641,0.6958,2428.3,2427.9,0.6777]
[1725234999025,4.29,2428.6,2428.0,0.20591]
[1725234999342,4.59903809,2428.5,2427.9,0.6777]
[1725234999637,4.59903809,2428.5,2427.9,0.88362]
[1725235000724,4.59903809,2428.5,2427.9,4.09142]
[1725235001538,4.59903809,2428.5,2427.9,3.8855]
[1725235001739,0.2059,2428.3,2427.9,0.6777]
[1725235002036,3.41369,2428.3,2427.9,0.6777]
[1725235002234,0.7314,2428.2,2427.9,0.6777]
[1725235002830,0.7078,2428.1,2427.9,0.6777]
[1725235003541,4.8262,2428.1,2427.6,3.2078]
[1725235003839,0.20594,2427.8,2427.4,0.6984]
[1725235004047,0.7198,2427.7,2427.4,0.6984]
[1725235006939,0.7078,2428.1,2427.4,8.0254]
[1725235007142,0.7078,2428.1,2427.5,0.20596]
[1725235007549,0.7078,2428.1,2427.6,0.7093]
[1725235007744,0.7078,2428.1,2427.7,0.7286]
[1725235013845,0.7078,2428.1,2427.7,0.93454]
[1725235014642,0.7078,2428.1,2427.7,0.7286]
[1725235015447,2.85,2428.4,2427.7,3.9364]
[1725235015749,0.6855,2428.5,2428.0,0.20591]
[1725235016837,0.6855,2428.5,2428.1,0.7195]
[1725235018544,0.6855,2428.5,2427.9,0.20592]
[1725235018761,4.76268476,2428.4,2427.9,0.20592]
[1725235019140,4.76268476,2428.4,2427.8,1.4026]
[1725235019352,3.41369,2428.3,2427.8,1.4026]
[1725235019545,0.2059,2428.2,2427.8,1.4026]
[1725235019746,0.7181,2428.1,2427.8,0.7219]
[1725235020046,1.4353,2428.1,2427.8,0.7219]
[1725235020652,1.4353,2428.1,2427.7,0.7286]
[1725235020653,1.64121,2428.1,2427.7,0.7286]
[1725235021048,1.4353,2428.1,2427.7,0.7286]
[1725235021359,4.84901,2428.1,2427.7,0.7286]
[1725235021755,4.6431,2428.1,2427.7,0.7286]
[1725235022250,3.05589,2428.4,2427.7,0.93453]
[1725235022555,9.82364334,2428.4,2427.7,0.93453]
[1725235023156,9.82364334,2428.4,2427.7,0.7286]
[1725235023157,3.2078,2428.2,2427.7,0.7286]
[1725235023655,7.59275713,2428.1,2427.7,0.7286]
[1725235024059,0.7192,2428.0,2427.7,0.7286]
[1725235024560,0.7192,2428.0,2427.3,0.20597]
[1725235024561,0.742,2427.9,2427.3,0.20597]
[1725235024852,5.89281168,2427.9,2427.4,0.89956]
[1725235025054,5.19351168,2427.9,2427.4,0.89956]
[1725235025849,0.7192,2428.0,2427.5,0.20596]
[1725235027254,3.2078,2428.2,2427.5,10.177]
[1725235027458,3.2078,2428.2,2427.8,0.20593]
[1725235027654,3.2078,2428.2,2427.9,0.7407]
[1725235027865,3.2078,2428.2,2427.9,2.1472]
[1725235028945,0.7114,2428.3,2427.9,2.1472]
[1725235030967,3.2078,2428.7,2427.9,2.1472]
[1725235031256,0.7297,2428.7,2428.1,3.2078]
[1725235031561,0.7297,2428.7,2428.2,0.20589]
[1725235031859,0.7297,2428.7,2428.3,0.6949]
[1725235032061,0.7297,2428.7,2428.3,2.1328]
[1725235033060,0.7297,2428.7,2428.3,2.33869]
[1725235033248,0.00618072,2428.9,2428.4,0.20588]
[1725235033448,0.73588072,2428.9,2428.4,0.20588]
[1725235034666,0.73588072,2428.9,2428.4,3.41368]
[1725235035162,0.73588072,2428.9,2428.4,6.0578]
[1725235036158,0.73588072,2428.9,2428.5,0.20587]
[1725235036561,0.73588072,2428.9,2428.4,0.20588]
[1725235036859,0.73588072,2428.9,2428.3,2.1328]
[1725235036860,0.73588072,2428.9,2428.3,2.33868]
[1725235037062,0.73588072,2428.9,2428.4,0.20588]
[1725235040364,0.00618072,2428.9,2428.4,3.2078]
[1725235040567,0.00618072,2428.9,2428.6,0.20586]
[1725235040764,0.00618072,2428.9,2428.7,1.4324]
[1725235040959,0.00618072,2428.9,2428.7,2.1178]
[1725235041867,0.00618072,2428.9,2428.7,2.32366]
[1725235042254,0.00618072,2428.9,2428.8,0.20585]
[1725235042768,0.00618072,2428.9,2428.8,4.32265]
[1725235047456,0.00618072,2428.9,2428.8,10.32265]
[1725235048067,0.685,2429.4,2429.1,0.20582]
[1725235048268,0.685,2429.4,2429.2,2.2208]
[1725235048667,2.85,2429.7,2429.2,2.2208]
[1725235048959,0.6937,2429.6,2429.2,2.43279072]
[1725235049282,0.6937,2429.6,2429.3,0.2058]